[Event "CZE Extraliga 2019-20"]
[Site "Czech Republic"]
[Date "2019.10.12"]
[Round "1.8"]
[White "BSS13 Vesselovsky Serguei IM"]
[Black "Rosko, Lubos"]
[Result "1/2-1/2"]
[ECO "B22"]
[WhiteElo "2306"]
[BlackElo "2317"]
[Annotator "NA"]
[PlyCount "32"]
[EventDate "2019.09.15"]
[EventType "team-tourn"]
[EventCountry "CZE"]
[SourceTitle "playchess.com"]
[Source "ChessBase"]
[SourceQuality "1"]
[BlackTeam "Pardubice"]
[TimeControl "40/5400+30:1800+30"]

1. e4 {[%emt 0:00:00]} c5 {[%emt 0:00:00]} 2. c3 {[%emt 0:00:00]} d5 {[%emt 0:00:58]} 3. exd5 {[%emt 0:00:00]} Qxd5 {[%emt 0:00:08]} 4. d4 {[%emt 0:00:00]} Nf6 {[%emt 0:00:33]} 5. Nf3 {[%emt 0:00:22]} Bg4 {[%emt 0:00:24]} 6. Nbd2 {[%emt 0:00:14]} Nc6 {[%emt 0:04:36]} 7. Bc4 {[%emt 0:00:58]} Bxf3 {[%emt 0:03:21]} 8. Qb3 {[%emt 0:00:56]} Na5 {[%emt 0:05:59]} 9. Qb5+ {[%emt 0:01:07]} Qd7 {[%emt 0:02:02]} 10. Nxf3 {[%emt 0:00:27]} Nxc4 {[%emt 0:00:30]} 11. Qxc4 {[%emt 0:00:12]} cxd4 {[%emt 0:01:22]} 12. Nxd4 {[%emt 0:00:37]} e6 {[%emt 0:13:15]} 13. Bg5 {[%emt 0:12:36]} Rc8 {[%emt 0:11:23]} 14. Qe2 {[%emt 0:10:07]} Be7 {[%emt 0:01:25]} 15. O-O {[%emt 0:18:04]} O-O {[%emt 0:02:30]} 16. Rfd1 {[%emt 0:02:03]} Qd5 {[%emt 0:11:31]} 1/2-1/2

[Event "CZE Extraliga 2019-20"]
[Site "Czech Republic"]
[Date "2019.10.12"]
[Round "1.8"]
[White "Kuba, Jindrich"]
[Black "Barak, David"]
[Result "1/2-1/2"]
[ECO "B17"]
[WhiteElo "2295"]
[BlackElo "2070"]
[Annotator "NA"]
[PlyCount "85"]
[EventDate "2019.09.15"]
[EventType "team-tourn"]
[EventCountry "CZE"]
[SourceTitle "playchess.com"]
[Source "ChessBase"]
[SourceQuality "1"]
[BlackTeam "Duras"]
[TimeControl "40/5400+30:1800+30"]

1. e4 {[%emt 0:00:00]} c6 {[%emt 0:00:00]} 2. d4 {[%emt 0:00:00]} d5 {[%emt 0:00:00]} 3. Nc3 {[%emt 0:00:23]} dxe4 {[%emt 0:00:00]} 4. Nxe4 {[%emt 0:00:06]} Nd7 {[%emt 0:00:07]} 5. Bd3 {[%emt 0:03:03]} Ndf6 {[%emt 0:05:11]} 6. c3 {[%emt 0:06:39]} Nxe4 {[%emt 0:01:32]} 7. Bxe4 {[%emt 0:00:34]} Nf6 {[%emt 0:00:07]} 8. Bd3 {[%emt 0:00:00]} Bg4 {[%emt 0:02:01]} 9. f3 {[%emt 0:00:12]} Bh5 {[%emt 0:03:49]} 10. Nh3 {[%emt 0:03:12]} e6 {[%emt 0:04:49]} 11. Bg5 {[%emt 0:03:10]} Be7 {[%emt 0:05:27]} 12. Qe2 {[%emt 0:09:11]} Bg6 {[%emt 0:09:35]} 13. Bc4 {[%emt 0:03:39]} Qc7 {[%emt 0:10:34]} 14. Bf4 {[%emt 0:09:24]} Bd6 {[%emt 0:09:11]} 15. Bxd6 {[%emt 0:01:08]} Qxd6 {[%emt 0:00:07]} 16. Qe5 {[%emt 0:04:23]} Qxe5+ {[%emt 0:13:06]} 17. dxe5 {[%emt 0:00:08]} Nd7 {[%emt 0:00:06]} 18. f4 {[%emt 0:00:14]} O-O-O {[%emt 0:00:12]} 19. O-O-O {[%emt 0:01:51]} Nc5 {[%emt 0:01:51]} 20. Nf2 {[%emt 0:01:18]} Ne4 {[%emt 0:07:27]} 21. Nxe4 {[%emt 0:03:49]} Bxe4 {[%emt 0:00:07]} 22. Rxd8+ {[%emt 0:03:59]} Rxd8 {[%emt 0:00:10]} 23. Be2 {[%emt 0:01:36]} g6 {[%emt 0:09:31]} 24. Rg1 {[%emt 0:00:08]} h5 {[%emt 0:02:14]} 25. h4 {[%emt 0:01:31]} Kc7 {[%emt 0:05:04]} 26. g3 {[%emt 0:00:18]} Kb6 {[%emt 0:03:00]} 27. b4 {[%emt 0:01:17]} Kc7 {[%emt 0:04:31]} 28. Rd1 {[%emt 0:00:17]} Rxd1+ {[%emt 0:02:54]} 29. Kxd1 {[%emt 0:00:11]} b6 {[%emt 0:00:31]} 30. Kd2 {[%emt 0:00:08]} Bb1 {[%emt 0:00:52]} 31. a3 {[%emt 0:00:18]} Be4 {[%emt 0:00:16]} 32. Ke3 {[%emt 0:00:25]} Bc2 {[%emt 0:00:53]} 33. Kd4 {[%emt 0:00:15]} Bf5 {[%emt 0:00:35]} 34. Bd1 {[%emt 0:01:09]} Bh3 {[%emt 0:00:23]} 35. c4 {[%emt 0:01:09]} Bf5 {[%emt 0:00:34]} 36. a4 {[%emt 0:00:59]} Bh3 {[%emt 0:00:35]} 37. c5 {[%emt 0:02:55]} b5 {[%emt 0:00:32]} 38. axb5 {[%emt 0:01:39]} cxb5 {[%emt 0:00:02]} 39. Bf3 {[%emt 0:00:39]} a6 {[%emt 0:00:53]} 40. c6 {[%emt 0:02:14]} Bf5 {[%emt 0:00:33]} 41. Kc5 {[%emt 0:30:08]} Bh3 {[%emt 0:30:22]} 42. Be2 {[%emt 0:05:28]} Bf5 {[%emt 0:00:40]} 43. Bf3 {[%emt 0:04:20]} 1/2-1/2

[Event "CZE Extraliga 2019-20"]
[Site "Czech Republic"]
[Date "2019.10.12"]
[Round "1.8"]
[White "Pribyl, Josef"]
[Black "Vymazal, Bronislav"]
[Result "0-1"]
[ECO "A81"]
[WhiteElo "2234"]
[BlackElo "2347"]
[Annotator "NA"]
[PlyCount "80"]
[EventDate "2019.09.15"]
[EventType "team-tourn"]
[EventCountry "CZE"]
[SourceTitle "playchess.com"]
[Source "ChessBase"]
[SourceQuality "1"]
[TimeControl "40/5400+30:1800+30"]

1. d4 {[%emt 0:00:00]} f5 {[%emt 0:00:00]} 2. g3 {[%emt 0:00:01]} Nf6 {[%emt 0:00:00]} 3. Bg2 {[%emt 0:00:08]} g6 {[%emt 0:00:00]} 4. Nf3 {[%emt 0:00:47]} Bg7 {[%emt 0:00:00]} 5. c4 {[%emt 0:00:14]} O-O {[%emt 0:00:04]} 6. Nc3 {[%emt 0:00:11]} d6 {[%emt 0:00:05]} 7. O-O {[%emt 0:00:20]} Qe8 {[%emt 0:00:48]} 8. Bg5 {[%emt 0:00:54]} e5 {[%emt 0:20:52]} 9. Qc1 {[%emt 0:12:07]} e4 {[%emt 0:07:22]} 10. Ne1 {[%emt 0:01:14]} c6 {[%emt 0:05:34]} 11. Nc2 {[%emt 0:03:24]} Be6 {[%emt 0:00:22]} 12. b3 {[%emt 0:22:19]} Nbd7 {[%emt 0:03:08]} 13. Bh6 {[%emt 0:01:53]} d5 {[%emt 0:07:21]} 14. cxd5 {[%emt 0:00:18]} Nxd5 {[%emt 0:00:15]} 15. Nxd5 {[%emt 0:00:44]} Bxd5 {[%emt 0:00:50]} 16. Bxg7 {[%emt 0:00:48]} Kxg7 {[%emt 0:00:09]} 17. Ne3 {[%emt 0:02:41]} Nf6 {[%emt 0:05:37]} 18. Qd2 {[%emt 0:01:18]} Qe6 {[%emt 0:03:37]} 19. f4 {[%emt 0:01:31]} exf3 {[%emt 0:01:05]} 20. exf3 {[%emt 0:00:02]} Rad8 {[%emt 0:06:26]} 21. Rfe1 {[%emt 0:00:26]} Qd6 {[%emt 0:00:45]} 22. Rad1 {[%emt 0:00:48]} f4 {[%emt 0:07:12]} 23. Nf1 {[%emt 0:03:07]} Rf7 {[%emt 0:07:18]} 24. g4 {[%emt 0:06:04]} Nxg4 {[%emt 0:04:46]} 25. Qa5 {[%emt 0:02:21]} b6 {[%emt 0:01:51]} 26. Qc3 {[%emt 0:00:28]} Nh6 {[%emt 0:03:10]} 27. Nd2 {[%emt 0:00:15]} Nf5 {[%emt 0:00:21]} 28. Ne4 {[%emt 0:03:01]} Bxe4 {[%emt 0:03:09]} 29. Rxe4 {[%emt 0:00:02]} Ne3 {[%emt 0:01:49]} 30. Re1 {[%emt 0:00:02]} Qf6 {[%emt 0:00:34]} 31. Rc1 {[%emt 0:03:15]} c5 {[%emt 0:00:28]} 32. Bf1 {[%emt 0:04:39]} Rxd4 {[%emt 0:02:29]} 33. Rxd4 {[%emt 0:00:22]} cxd4 {[%emt 0:00:13]} 34. Qd3 {[%emt 0:00:35]} Qg5+ {[%emt 0:01:54]} 35. Kh1 {[%emt 0:00:09]} Qd5 {[%emt 0:00:23]} 36. Be2 {[%emt 0:00:30]} Re7 {[%emt 0:01:19]} 37. a4 {[%emt 0:01:30]} Ng4 {[%emt 0:00:45]} 38. Kg1 {[%emt 0:03:07]} Ne5 {[%emt 0:04:54]} 39. Qd1 {[%emt 0:02:08]} d3 {[%emt 0:00:25]} 40. Kf2 {[%emt 0:02:06]} Ng4+ {[%emt 0:00:44]} 0-1

[Event "CZE Extraliga 2019-20"]
[Site "Czech Republic"]
[Date "2019.10.12"]
[Round "1.8"]
[White "Mudrak, Josef"]
[Black "Liska, Jiri"]
[Result "1/2-1/2"]
[ECO "D79"]
[WhiteElo "2221"]
[BlackElo "2302"]
[Annotator "NA"]
[PlyCount "127"]
[EventDate "2019.09.15"]
[EventType "team-tourn"]
[EventCountry "CZE"]
[SourceTitle "playchess.com"]
[Source "ChessBase"]
[SourceQuality "1"]
[WhiteTeam "Kromeriz"]
[BlackTeam "Turnov"]
[TimeControl "40/5400+30:1800+30"]

1. d4 {[%emt 0:00:00]} Nf6 {[%emt 0:00:00]} 2. Nf3 {[%emt 0:00:00]} g6 {[%emt 0:00:18]} 3. c4 {[%emt 0:00:53]} Bg7 {[%emt 0:00:44]} 4. g3 {[%emt 0:02:05]} O-O {[%emt 0:01:46]} 5. Bg2 {[%emt 0:00:42]} c6 {[%emt 0:05:20]} 6. O-O {[%emt 0:02:54]} d5 {[%emt 0:00:40]} 7. cxd5 {[%emt 0:04:27]} cxd5 {[%emt 0:00:33]} 8. Nc3 {[%emt 0:00:43]} Nc6 {[%emt 0:00:41]} 9. Ne5 {[%emt 0:01:54]} Ng4 {[%emt 0:13:22]} 10. Nxc6 {[%emt 0:07:58]} bxc6 {[%emt 0:00:09]} 11. Na4 {[%emt 0:00:57]} Nf6 {[%emt 0:11:18]} 12. Bf4 {[%emt 0:05:01]} Ne4 {[%emt 0:06:06]} 13. Rc1 {[%emt 0:03:04]} Qa5 {[%emt 0:05:45]} 14. b3 {[%emt 0:06:05]} Qa6 {[%emt 0:07:24]} 15. Re1 {[%emt 0:19:48]} Rd8 {[%emt 0:05:51]} 16. Bc7 {[%emt 0:03:42]} Re8 {[%emt 0:02:10]} 17. f3 {[%emt 0:04:53]} Nd6 {[%emt 0:03:22]} 18. Nc5 {[%emt 0:01:24]} Qxa2 {[%emt 0:08:32]} 19. e3 {[%emt 0:02:13]} Nb5 {[%emt 0:05:28]} 20. Ra1 {[%emt 0:06:57]} Qxa1 {[%emt 0:01:22]} 21. Qxa1 {[%emt 0:00:12]} Nxc7 {[%emt 0:00:02]} 22. f4 {[%emt 0:01:33]} Bf5 {[%emt 0:04:52]} 23. Qa5 {[%emt 0:02:17]} Rec8 {[%emt 0:00:27]} 24. h3 {[%emt 0:01:15]} h5 {[%emt 0:02:03]} 25. Kh2 {[%emt 0:00:24]} Ne6 {[%emt 0:05:03]} 26. Na6 {[%emt 0:03:11]} Bf8 {[%emt 0:02:35]} 27. Rc1 {[%emt 0:02:44]} Nd8 {[%emt 0:03:33]} 28. Bf3 {[%emt 0:00:51]} Nb7 {[%emt 0:01:53]} 29. Qd2 {[%emt 0:04:47]} Nd6 {[%emt 0:00:50]} 30. g4 {[%emt 0:00:55]} hxg4 {[%emt 0:00:06]} 31. hxg4 {[%emt 0:00:12]} Be4 {[%emt 0:00:31]} 32. Be2 {[%emt 0:00:34]} e6 {[%emt 0:01:26]} 33. Kg3 {[%emt 0:05:17]} Be7 {[%emt 0:01:23]} 34. Bf3 {[%emt 0:04:25]} Kg7 {[%emt 0:00:37]} 35. Nc5 {[%emt 0:01:22]} Bxf3 {[%emt 0:00:44]} 36. Kxf3 {[%emt 0:00:16]} Rh8 {[%emt 0:00:22]} 37. Qg2 {[%emt 0:00:48]} Rab8 {[%emt 0:00:30]} 38. Rh1 {[%emt 0:00:29]} Rxh1 {[%emt 0:00:15]} 39. Qxh1 {[%emt 0:00:05]} Ne4 {[%emt 0:00:55]} 40. Nxe4 {[%emt 0:00:36]} dxe4+ {[%emt 0:00:02]} 41. Kxe4 {[%emt 0:31:09]} Rxb3 {[%emt 0:30:44]} 42. Qa1 {[%emt 0:00:00]} Ra3 {[%emt 0:00:00]} 43. Qb2 {[%emt 0:00:00]} Kg8 {[%emt 0:00:00]} 44. Qb7 {[%emt 0:00:00]} Bf8 {[%emt 0:00:00]} 45. Qxc6 {[%emt 0:00:00]} a5 {[%emt 0:00:00]} 46. Qc1 {[%emt 0:00:00]} a4 {[%emt 0:00:00]} 47. f5 {[%emt 0:00:00]} exf5+ {[%emt 0:00:00]} 48. gxf5 {[%emt 0:00:00]} gxf5+ {[%emt 0:00:00]} 49. Kxf5 {[%emt 0:00:00]} Ra2 {[%emt 0:00:58]} 50. d5 {[%emt 0:00:00]} a3 {[%emt 0:01:17]} 51. Ke4 {[%emt 0:00:00]} Rg2 {[%emt 0:01:38]} 52. Kf3 {[%emt 0:00:18]} Rg6 {[%emt 0:00:23]} 53. Qc2 {[%emt 0:00:33]} Rf6+ {[%emt 0:01:04]} 54. Kg3 {[%emt 0:02:18]} Rb6 {[%emt 0:01:06]} 55. Qa4 {[%emt 0:00:45]} Rb4 {[%emt 0:00:30]} 56. Qa8 {[%emt 0:00:18]} Rb6 {[%emt 0:00:33]} 57. e4 {[%emt 0:00:25]} Rg6+ {[%emt 0:00:43]} 58. Kf3 {[%emt 0:00:47]} Rf6+ {[%emt 0:00:15]} 59. Ke3 {[%emt 0:00:27]} Kg7 {[%emt 0:00:37]} 60. e5 {[%emt 0:00:28]} Bc5+ {[%emt 0:00:35]} 61. Ke4 {[%emt 0:00:20]} Rf2 {[%emt 0:00:35]} 62. d6 {[%emt 0:02:20]} Rd2 {[%emt 0:00:29]} 63. Qa5 {[%emt 0:00:54]} a2 {[%emt 0:00:28]} 64. Qxd2 1/2-1/2